[Event "Late-Titled-Tuesday-Blitz-May-07-2024"]
[Site "Chess.com"]
[Date "2024.05.07"]
[Round "5"]
[White "Caterpiller35"]
[Black "GMthekingindian"]
[Result "1-0"]
[WhiteElo "2437"]
[BlackElo "2266"]
[TimeControl "180+1"]
[EndTime "14:56:05 PDT"]
[Termination "Caterpiller35 won by resignation"]

1. d4 {[%clk 0:02:51.8]} 1... d5 {[%clk 0:02:59.7]} 2. Nc3 {[%clk 0:02:51.2]}
2... Nf6 {[%clk 0:02:59]} 3. Bf4 {[%clk 0:02:51.3]} 3... Bf5 {[%clk 0:02:59.1]}
4. f3 {[%clk 0:02:51.3]} 4... e6 {[%clk 0:02:58.4]} 5. g4 {[%clk 0:02:51.5]}
5... Bg6 {[%clk 0:02:59.1]} 6. h4 {[%clk 0:02:52.4]} 6... h5 {[%clk 0:02:59.4]}
7. g5 {[%clk 0:02:52.7]} 7... Nfd7 {[%clk 0:02:59.8]} 8. e4 {[%clk 0:02:53.1]}
8... Bb4 {[%clk 0:02:32.9]} 9. Bd3 {[%clk 0:02:51.2]} 9... O-O {[%clk 0:02:04]}
10. Ne2 {[%clk 0:02:44]} 10... c5 {[%clk 0:02:00.3]} 11. exd5 {[%clk 0:02:41.2]}
11... Bxd3 {[%clk 0:01:57.7]} 12. Qxd3 {[%clk 0:02:42.1]} 12... exd5 {[%clk
0:01:57.6]} 13. O-O-O {[%clk 0:02:41.2]} 13... c4 {[%clk 0:01:51.4]} 14. Qf5
{[%clk 0:02:40.5]} 14... g6 {[%clk 0:01:50.3]} 15. Qxd5 {[%clk 0:02:39.9]} 15...
Nb6 {[%clk 0:01:43.1]} 16. Qxd8 {[%clk 0:02:28.8]} 16... Rxd8 {[%clk 0:01:44]}
17. a3 {[%clk 0:02:25.8]} 17... Bf8 {[%clk 0:01:43.6]} 18. Bc7 {[%clk
0:02:20.1]} 18... Rd7 {[%clk 0:01:41.1]} 19. Bxb6 {[%clk 0:02:19.5]} 19... axb6
{[%clk 0:01:42]} 20. Ne4 {[%clk 0:02:17.9]} 20... Bg7 {[%clk 0:01:40.6]} 21. c3
{[%clk 0:02:16.8]} 21... Nc6 {[%clk 0:01:39.5]} 22. N2g3 {[%clk 0:02:15]} 22...
Ne7 {[%clk 0:01:29.7]} 23. Rde1 {[%clk 0:02:13.1]} 23... Nd5 {[%clk 0:01:30.1]}
24. Ne2 {[%clk 0:02:07.7]} 24... b5 {[%clk 0:01:25.1]} 25. Nc5 {[%clk
0:02:04.7]} 25... Rc7 {[%clk 0:01:25.1]} 26. Ng3 {[%clk 0:02:04.7]} 26... b6
{[%clk 0:01:15.4]} 27. Nce4 {[%clk 0:01:51.1]} 27... Nf4 {[%clk 0:01:14.9]} 28.
Kc2 {[%clk 0:01:50.8]} 28... Nd3 {[%clk 0:01:11.2]} 29. Re2 {[%clk 0:01:51]}
29... Nf4 {[%clk 0:00:59]} 30. Ree1 {[%clk 0:01:49.5]} 30... Nd3 {[%clk
0:00:50.6]} 31. Re3 {[%clk 0:01:49.5]} 31... Rd8 {[%clk 0:00:43.1]} 32. Rh2
{[%clk 0:01:47.6]} 32... Rc6 {[%clk 0:00:23.2]} 33. Rhe2 {[%clk 0:01:46.4]}
33... Nf4 {[%clk 0:00:23.5]} 34. Re1 {[%clk 0:01:30.9]} 34... Nd3 {[%clk
0:00:23.7]} 35. Nf6+ {[%clk 0:01:30.2]} 35... Bxf6 {[%clk 0:00:24]} 36. Re8+
{[%clk 0:01:30]} 36... Rxe8 {[%clk 0:00:24.2]} 37. Rxe8+ {[%clk 0:01:29.9]}
37... Kg7 {[%clk 0:00:24.9]} 38. Ne4 {[%clk 0:01:21.7]} 38... Bxd4 {[%clk
0:00:02.8]} 39. cxd4 {[%clk 0:01:19.7]} 39... Ne1+ {[%clk 0:00:03.7]} 40. Kc3
{[%clk 0:01:18.3]} 40... Nxf3 {[%clk 0:00:04.6]} 41. Nf6 {[%clk 0:01:18.2]}
41... Rxf6 {[%clk 0:00:02.3]} 42. gxf6+ {[%clk 0:01:19.1]} 42... Kxf6 {[%clk
0:00:03.2]} 43. d5 {[%clk 0:01:17]} 43... Ne5 {[%clk 0:00:01.6]} 44. d6 {[%clk
0:01:14.4]} 44... Nd7 {[%clk 0:00:00.8]} 45. Re7 {[%clk 0:01:13.8]} 45... Nb8
{[%clk 0:00:00.7]} 46. Kd4 {[%clk 0:01:11.3]} 46... Nc6+ {[%clk 0:00:00.4]} 47.
Ke4 {[%clk 0:01:05.8]} 47... Nxe7 {[%clk 0:00:01.3]} 48. d7 {[%clk 0:01:05.9]}
48... Nf5 {[%clk 0:00:00.9]} 49. d8=Q+ {[%clk 0:01:04.8]} 49... Ke6 {[%clk
0:00:01.8]} 50. Qxb6+ {[%clk 0:01:03.5]} 50... Nd6+ {[%clk 0:00:01.7]} 51. Kf4
{[%clk 0:01:02.4]} 51... f6 {[%clk 0:00:01.9]} 52. Qc6 {[%clk 0:01:00.3]} 52...
Ke7 {[%clk 0:00:01.8]} 53. Qd5 {[%clk 0:00:59.1]} 53... Nf7 {[%clk 0:00:01.5]}
54. Qxb5 {[%clk 0:00:58.9]} 54... Nd6 {[%clk 0:00:01.3]} 55. Qc5 {[%clk
0:00:56.8]} 55... Ke6 {[%clk 0:00:01.1]} 56. a4 {[%clk 0:00:56.6]} 56... Nf7
{[%clk 0:00:00.9]} 57. Qxc4+ {[%clk 0:00:54.9]} 57... Ke7 {[%clk 0:00:00.8]} 58.
Qxf7+ {[%clk 0:00:55.8]} 58... Kxf7 {[%clk 0:00:00.6]} 59. a5 {[%clk 0:00:55.5]}
59... Ke6 {[%clk 0:00:01.2]} 60. a6 {[%clk 0:00:54.3]} 60... Kd6 {[%clk
0:00:02.1]} 61. a7 {[%clk 0:00:54.6]} 61... Kc7 {[%clk 0:00:02.9]} 1-0

[Event "Late-Titled-Tuesday-Blitz-May-07-2024"]
[Site "Chess.com"]
[Date "2024.05.07"]
[Round "5"]
[White "DucksParadise"]
[Black "FelixBlohberger"]
[Result "0-1"]
[WhiteElo "2564"]
[BlackElo "2743"]
[TimeControl "180+1"]
[EndTime "14:56:06 PDT"]
[Termination "FelixBlohberger won by checkmate"]

1. a4 {[%clk 0:03:00.9]} 1... e5 {[%clk 0:02:59.3]} 2. Ra3 {[%clk 0:03:00.3]}
2... Bxa3 {[%clk 0:02:59.2]} 3. Nxa3 {[%clk 0:03:01.2]} 3... Nf6 {[%clk
0:02:59.1]} 4. b3 {[%clk 0:03:01.6]} 4... O-O {[%clk 0:02:58.8]} 5. Bb2 {[%clk
0:03:01.8]} 5... Re8 {[%clk 0:02:57.5]} 6. g3 {[%clk 0:03:00.7]} 6... d5 {[%clk
0:02:52.4]} 7. Bg2 {[%clk 0:03:01.2]} 7... Nc6 {[%clk 0:02:52]} 8. e3 {[%clk
0:03:00.5]} 8... Bf5 {[%clk 0:02:46]} 9. Ne2 {[%clk 0:02:56.3]} 9... Qd7 {[%clk
0:02:45.2]} 10. h3 {[%clk 0:02:55.6]} 10... Rad8 {[%clk 0:02:41.2]} 11. g4
{[%clk 0:02:48.6]} 11... Bg6 {[%clk 0:02:36.1]} 12. O-O {[%clk 0:02:47.7]} 12...
h5 {[%clk 0:02:29.9]} 13. g5 {[%clk 0:02:25.8]} 13... Ne4 {[%clk 0:02:26.9]} 14.
f4 {[%clk 0:02:23.7]} 14... Bf5 {[%clk 0:02:18.3]} 15. Kh2 {[%clk 0:01:41.7]}
15... d4 {[%clk 0:02:08.1]} 16. d3 {[%clk 0:01:32.1]} 16... dxe3 {[%clk
0:02:04.8]} 17. dxe4 {[%clk 0:00:54.6]} 17... Qxd1 {[%clk 0:02:04]} 18. Rxd1
{[%clk 0:00:55.5]} 18... Rxd1 {[%clk 0:02:04.2]} 19. exf5 {[%clk 0:00:56.4]}
19... Rd2 {[%clk 0:02:01.3]} 20. Bf3 {[%clk 0:00:56]} 20... exf4 {[%clk
0:01:33.1]} 21. Bxh5 {[%clk 0:00:55.1]} 21... Ne5 {[%clk 0:01:16.8]} 22. Bxe5
{[%clk 0:00:53.2]} 22... Rxe5 {[%clk 0:01:17.7]} 23. Nc4 {[%clk 0:00:52.4]}
23... Rxf5 {[%clk 0:01:13.7]} 24. Nxd2 {[%clk 0:00:43.4]} 24... exd2 {[%clk
0:01:13.4]} 25. Nc3 {[%clk 0:00:25.6]} 25... Rxg5 {[%clk 0:01:12.2]} 26. Be2
{[%clk 0:00:23]} 26... Rc5 {[%clk 0:01:08.1]} 27. Nd1 {[%clk 0:00:22.5]} 27...
Rxc2 {[%clk 0:01:04.6]} 28. Kg2 {[%clk 0:00:21.8]} 28... g5 {[%clk 0:00:55.1]}
29. Kf3 {[%clk 0:00:21.9]} 29... Rc6 {[%clk 0:00:37.3]} 30. h4 {[%clk
0:00:20.8]} 30... f6 {[%clk 0:00:34.5]} 31. Bc4+ {[%clk 0:00:17.5]} 31... Kg7
{[%clk 0:00:34.3]} 32. Kg4 {[%clk 0:00:18.1]} 32... Kh6 {[%clk 0:00:32.5]} 33.
hxg5+ {[%clk 0:00:15.6]} 33... fxg5 {[%clk 0:00:32.5]} 34. Bd5 {[%clk
0:00:12.9]} 34... Rc1 {[%clk 0:00:29.5]} 35. Bf3 {[%clk 0:00:12.8]} 35... Kg6
{[%clk 0:00:24.4]} 36. b4 {[%clk 0:00:11.2]} 36... c6 {[%clk 0:00:21.9]} 37. b5
{[%clk 0:00:10.7]} 37... cxb5 {[%clk 0:00:18.9]} 38. axb5 {[%clk 0:00:11.6]}
38... Kf6 {[%clk 0:00:13.4]} 39. Kh3 {[%clk 0:00:03.6]} 39... Ke5 {[%clk
0:00:12.5]} 40. Kg2 {[%clk 0:00:04]} 40... Kf5 {[%clk 0:00:10.2]} 41. Kf2 {[%clk
0:00:03.2]} 41... g4 {[%clk 0:00:10.4]} 42. Be2 {[%clk 0:00:02.1]} 42... f3
{[%clk 0:00:10.6]} 43. Bd3+ {[%clk 0:00:02.4]} 43... Kf4 {[%clk 0:00:11.2]} 44.
Ne3 {[%clk 0:00:02.6]} 44... g3# {[%clk 0:00:11.4]} 0-1

[Event "Late-Titled-Tuesday-Blitz-May-07-2024"]
[Site "Chess.com"]
[Date "2024.05.07"]
[Round "5"]
[White "Mackster23"]
[Black "K_A_S_T_O_R"]
[Result "0-1"]
[WhiteElo "2590"]
[BlackElo "2833"]
[TimeControl "180+1"]
[EndTime "14:56:07 PDT"]
[Termination "K_A_S_T_O_R won by checkmate"]

1. e4 {[%clk 0:03:00.9]} 1... e6 {[%clk 0:02:59.8]} 2. d4 {[%clk 0:03:00.6]}
2... d5 {[%clk 0:02:59.8]} 3. Nc3 {[%clk 0:03:00.9]} 3... Bb4 {[%clk 0:02:58.8]}
4. e5 {[%clk 0:03:00.9]} 4... c5 {[%clk 0:02:59]} 5. a3 {[%clk 0:03:01.1]} 5...
Bxc3+ {[%clk 0:02:58.8]} 6. bxc3 {[%clk 0:03:02]} 6... Ne7 {[%clk 0:02:59]} 7.
Qg4 {[%clk 0:03:01.7]} 7... Kf8 {[%clk 0:02:59.1]} 8. Qd1 {[%clk 0:02:59.8]}
8... b6 {[%clk 0:02:58.3]} 9. h4 {[%clk 0:02:58.2]} 9... Ba6 {[%clk 0:02:57.6]}
10. Bxa6 {[%clk 0:02:57.9]} 10... Nxa6 {[%clk 0:02:57.7]} 11. h5 {[%clk
0:02:58.6]} 11... h6 {[%clk 0:02:57.5]} 12. Rh3 {[%clk 0:02:48.5]} 12... Nb8
{[%clk 0:02:57.1]} 13. Ne2 {[%clk 0:02:36.1]} 13... Nd7 {[%clk 0:02:55.6]} 14.
Nf4 {[%clk 0:02:29.7]} 14... cxd4 {[%clk 0:02:47.3]} 15. cxd4 {[%clk 0:02:28]}
15... Rc8 {[%clk 0:02:47.1]} 16. Bd2 {[%clk 0:02:19.9]} 16... a5 {[%clk
0:02:45]} 17. c3 {[%clk 0:02:08.1]} 17... Kg8 {[%clk 0:02:40.8]} 18. Qg4 {[%clk
0:02:05.2]} 18... Nf8 {[%clk 0:02:37.4]} 19. Rb1 {[%clk 0:01:41.1]} 19... Nf5
{[%clk 0:02:35.3]} 20. Rb5 {[%clk 0:01:33.4]} 20... Ne7 {[%clk 0:02:10.9]} 21.
Rg3 {[%clk 0:01:27.2]} 21... Rh7 {[%clk 0:02:10.3]} 22. Qd1 {[%clk 0:01:12.5]}
22... Nf5 {[%clk 0:02:02.1]} 23. Rg4 {[%clk 0:01:12.1]} 23... Nd7 {[%clk
0:02:02.4]} 24. Qb1 {[%clk 0:01:07.6]} 24... Ne7 {[%clk 0:02:00.5]} 25. a4
{[%clk 0:01:02.8]} 25... Rc4 {[%clk 0:01:58.9]} 26. Qb3 {[%clk 0:00:52.4]} 26...
Qc7 {[%clk 0:01:57.8]} 27. Ne2 {[%clk 0:00:43.2]} 27... Qc6 {[%clk 0:01:53.5]}
28. Rf4 {[%clk 0:00:36.8]} 28... Nc8 {[%clk 0:01:44.1]} 29. Qa3 {[%clk
0:00:29.9]} 29... g6 {[%clk 0:01:24.1]} 30. hxg6 {[%clk 0:00:28.4]} 30... fxg6
{[%clk 0:01:24.5]} 31. Rg4 {[%clk 0:00:23.1]} 31... Ne7 {[%clk 0:01:19.8]} 32.
Bxh6 {[%clk 0:00:19.3]} 32... Kf7 {[%clk 0:01:14.8]} 33. Bg5 {[%clk 0:00:16.7]}
33... Nf5 {[%clk 0:01:14.5]} 34. Kd2 {[%clk 0:00:13.7]} 34... Rh5 {[%clk
0:00:54.4]} 35. Ng3 {[%clk 0:00:13]} 35... Rh7 {[%clk 0:00:42]} 36. Nxf5 {[%clk
0:00:12.7]} 36... exf5 {[%clk 0:00:42.4]} 37. Qe7+ {[%clk 0:00:10.5]} 37... Kg8
{[%clk 0:00:42.7]} 38. Qd8+ {[%clk 0:00:02.1]} 38... Nf8 {[%clk 0:00:42.6]} 39.
Rg3 {[%clk 0:00:02.6]} 39... Qd7 {[%clk 0:00:36.5]} 40. Qxb6 {[%clk 0:00:02.5]}
40... Rxa4 {[%clk 0:00:35.9]} 41. Be3 {[%clk 0:00:02.2]} 41... Ra2+ {[%clk
0:00:36]} 42. Rb2 {[%clk 0:00:02.4]} 42... Rxb2+ {[%clk 0:00:33.5]} 43. Qxb2
{[%clk 0:00:03.3]} 43... Qc6 {[%clk 0:00:34.1]} 44. Qa3 {[%clk 0:00:03.5]} 44...
Rb7 {[%clk 0:00:33.6]} 45. Qxa5 {[%clk 0:00:03.3]} 45... Rb2+ {[%clk 0:00:33.6]}
46. Kc1 {[%clk 0:00:04]} 46... Rb3 {[%clk 0:00:33.1]} 47. Bd2 {[%clk 0:00:03.5]}
47... Qc4 {[%clk 0:00:32.3]} 48. Qd8 {[%clk 0:00:01.3]} 48... Qf1+ {[%clk
0:00:31.3]} 49. Be1 {[%clk 0:00:01.7]} 49... Qxe1+ {[%clk 0:00:31.1]} 50. Kc2
{[%clk 0:00:02.5]} 50... Qb1+ {[%clk 0:00:31.6]} 51. Kd2 {[%clk 0:00:03.2]}
51... Rb2+ {[%clk 0:00:32.1]} 52. Ke3 {[%clk 0:00:03.4]} 52... Qe4# {[%clk
0:00:32.7]} 0-1

[Event "Late-Titled-Tuesday-Blitz-May-07-2024"]
[Site "Chess.com"]
[Date "2024.05.07"]
[Round "5"]
[White "Flaccidmoves"]
[Black "Ajedrez_con_German"]
[Result "1/2-1/2"]
[WhiteElo "2389"]
[BlackElo "2591"]
[TimeControl "180+1"]
[EndTime "14:56:14 PDT"]
[Termination "Game drawn by repetition"]

1. d4 {[%clk 0:03:00.9]} 1... Nf6 {[%clk 0:02:57.4]} 2. c4 {[%clk 0:03:00.6]}
2... g6 {[%clk 0:02:57]} 3. g3 {[%clk 0:02:56.1]} 3... Bg7 {[%clk 0:02:55.6]} 4.
Bg2 {[%clk 0:02:56.4]} 4... O-O {[%clk 0:02:54.2]} 5. e4 {[%clk 0:02:56.3]} 5...
d6 {[%clk 0:02:53.8]} 6. Ne2 {[%clk 0:02:56.1]} 6... c5 {[%clk 0:02:50]} 7. O-O
{[%clk 0:02:53.6]} 7... cxd4 {[%clk 0:02:48]} 8. Nxd4 {[%clk 0:02:53.1]} 8...
Nc6 {[%clk 0:02:48.3]} 9. Nb3 {[%clk 0:02:44.8]} 9... Be6 {[%clk 0:02:46]} 10.
c5 {[%clk 0:02:31.5]} 10... Bxb3 {[%clk 0:02:35.6]} 11. Qxb3 {[%clk 0:02:30.7]}
11... Nd4 {[%clk 0:02:35.5]} 12. Qxb7 {[%clk 0:02:15.1]} 12... Nc2 {[%clk
0:02:28.7]} 13. cxd6 {[%clk 0:02:09.6]} 13... exd6 {[%clk 0:02:19.6]} 14. e5
{[%clk 0:01:51]} 14... Rb8 {[%clk 0:02:17.8]} 15. exf6 {[%clk 0:01:44.3]} 15...
Rxb7 {[%clk 0:02:11]} 16. fxg7 {[%clk 0:01:44]} 16... Kxg7 {[%clk 0:02:11.5]}
17. Bxb7 {[%clk 0:01:43.3]} 17... Nxa1 {[%clk 0:01:59.5]} 18. Na3 {[%clk
0:01:36.5]} 18... Qf6 {[%clk 0:01:42.8]} 19. Rd1 {[%clk 0:01:32.1]} 19... Re8
{[%clk 0:01:26.9]} 20. Be3 {[%clk 0:01:26.8]} 20... Kg8 {[%clk 0:01:17.4]} 21.
Bd4 {[%clk 0:01:25.6]} 21... Qe7 {[%clk 0:01:05.4]} 22. Bf3 {[%clk 0:01:12.8]}
22... Rc8 {[%clk 0:00:34.8]} 23. Rxa1 {[%clk 0:01:08.1]} 23... Qg5 {[%clk
0:00:34.8]} 24. Kg2 {[%clk 0:01:02.3]} 24... Qa5 {[%clk 0:00:31.9]} 25. Rd1
{[%clk 0:00:53.9]} 25... Qb4 {[%clk 0:00:30.5]} 26. Nb1 {[%clk 0:00:33.3]} 26...
Re8 {[%clk 0:00:26]} 27. Bc3 {[%clk 0:00:25.9]} 27... Qb6 {[%clk 0:00:25.4]} 28.
Nd2 {[%clk 0:00:22.2]} 28... f5 {[%clk 0:00:19.8]} 29. Bd5+ {[%clk 0:00:20.9]}
29... Kf8 {[%clk 0:00:20.2]} 30. Nc4 {[%clk 0:00:20.8]} 30... Qc5 {[%clk
0:00:19.8]} 31. a3 {[%clk 0:00:18.2]} 31... Rb8 {[%clk 0:00:17.7]} 32. Nxd6
{[%clk 0:00:17.1]} 32... Qxd6 {[%clk 0:00:17.1]} 33. Bb4 {[%clk 0:00:14.1]}
33... Rxb4 {[%clk 0:00:17.4]} 34. axb4 {[%clk 0:00:15]} 34... Qxb4 {[%clk
0:00:18]} 35. b3 {[%clk 0:00:12.9]} 35... a5 {[%clk 0:00:18.1]} 36. h4 {[%clk
0:00:09.8]} 36... Ke7 {[%clk 0:00:18.4]} 37. Rd3 {[%clk 0:00:07]} 37... Kf6
{[%clk 0:00:18.3]} 38. Re3 {[%clk 0:00:06.3]} 38... Qd4 {[%clk 0:00:16.7]} 39.
Re6+ {[%clk 0:00:05.1]} 39... Kg7 {[%clk 0:00:17.1]} 40. Rd6 {[%clk 0:00:05.2]}
40... Kh6 {[%clk 0:00:15.7]} 41. Rd7 {[%clk 0:00:05]} 41... Qe5 {[%clk
0:00:12.3]} 42. f3 {[%clk 0:00:04.3]} 42... Qe2+ {[%clk 0:00:11.9]} 43. Kh3
{[%clk 0:00:04.6]} 43... Qf1+ {[%clk 0:00:11.9]} 44. Kh2 {[%clk 0:00:04.8]}
44... Qf2+ {[%clk 0:00:12.2]} 45. Kh3 {[%clk 0:00:05.1]} 45... Qg1 {[%clk
0:00:12.5]} 46. f4 {[%clk 0:00:04.1]} 46... Qf1+ {[%clk 0:00:12.3]} 47. Kh2
{[%clk 0:00:04.5]} 47... Qf2+ {[%clk 0:00:12.7]} 48. Kh3 {[%clk 0:00:04.8]}
48... Qf1+ {[%clk 0:00:12.2]} 49. Kh2 {[%clk 0:00:05.2]} 49... Qf2+ {[%clk
0:00:12.7]} 50. Kh3 {[%clk 0:00:05.7]} 50... Qf1+ {[%clk 0:00:11.9]} 1/2-1/2

[Event "Late-Titled-Tuesday-Blitz-May-07-2024"]
[Site "Chess.com"]
[Date "2024.05.07"]
[Round "5"]
[White "Redzishchess"]
[Black "TokChess"]
[Result "1-0"]
[WhiteElo "2516"]
[BlackElo "2630"]
[TimeControl "180+1"]
[EndTime "14:56:15 PDT"]
[Termination "Redzishchess won by checkmate"]

1. Nf3 {[%clk 0:02:52.6]} 1... Nf6 {[%clk 0:03:00.9]} 2. b3 {[%clk 0:02:51.7]}
2... b6 {[%clk 0:03:00.2]} 3. g3 {[%clk 0:02:51.1]} 3... Bb7 {[%clk 0:03:01.1]}
4. Bg2 {[%clk 0:02:50.9]} 4... e6 {[%clk 0:03:01.6]} 5. Bb2 {[%clk 0:02:51.5]}
5... c5 {[%clk 0:03:01.9]} 6. O-O {[%clk 0:02:51.7]} 6... Be7 {[%clk 0:03:02.5]}
7. c4 {[%clk 0:02:48.9]} 7... O-O {[%clk 0:03:02.3]} 8. Nc3 {[%clk 0:02:48.9]}
8... d6 {[%clk 0:03:02.4]} 9. d4 {[%clk 0:02:48.1]} 9... cxd4 {[%clk 0:03:03.3]}
10. Qxd4 {[%clk 0:02:48.5]} 10... a6 {[%clk 0:02:57]} 11. Rac1 {[%clk
0:02:48.1]} 11... Nbd7 {[%clk 0:02:55.6]} 12. Rfd1 {[%clk 0:02:48.2]} 12... Qc7
{[%clk 0:02:54.5]} 13. h4 {[%clk 0:02:38.4]} 13... Rfd8 {[%clk 0:02:51.1]} 14.
Ba3 {[%clk 0:02:01.4]} 14... Nc5 {[%clk 0:02:45.1]} 15. Bh3 {[%clk 0:01:38.2]}
15... Rac8 {[%clk 0:02:32.1]} 16. g4 {[%clk 0:01:23.6]} 16... Qb8 {[%clk
0:01:50.5]} 17. g5 {[%clk 0:01:14.5]} 17... Nfd7 {[%clk 0:01:38.6]} 18. Bb2
{[%clk 0:01:11.9]} 18... Bf8 {[%clk 0:01:32.8]} 19. h5 {[%clk 0:01:07.5]} 19...
Qa8 {[%clk 0:01:27.7]} 20. Bg2 {[%clk 0:00:25.7]} 20... e5 {[%clk 0:01:27.1]}
21. Qh4 {[%clk 0:00:22.9]} 21... Ne6 {[%clk 0:01:22.9]} 22. Qg4 {[%clk
0:00:12.3]} 22... Nf4 {[%clk 0:01:18.9]} 23. Bh1 {[%clk 0:00:12.3]} 23... b5
{[%clk 0:01:11.4]} 24. e3 {[%clk 0:00:12.1]} 24... Ne6 {[%clk 0:01:03.6]} 25. g6
{[%clk 0:00:12.2]} 25... Nf6 {[%clk 0:01:00.1]} 26. gxf7+ {[%clk 0:00:11.4]}
26... Kxf7 {[%clk 0:00:59]} 27. Qf5 {[%clk 0:00:11.1]} 27... g6 {[%clk 0:00:48]}
28. hxg6+ {[%clk 0:00:08.4]} 28... hxg6 {[%clk 0:00:48.4]} 29. Qh3 {[%clk
0:00:07.3]} 29... Bg7 {[%clk 0:00:45]} 30. Nd5 {[%clk 0:00:04.1]} 30... Rh8
{[%clk 0:00:42]} 31. Qg3 {[%clk 0:00:02]} 31... bxc4 {[%clk 0:00:28.6]} 32. Bg2
{[%clk 0:00:01.4]} 32... Bxd5 {[%clk 0:00:22.1]} 33. bxc4 {[%clk 0:00:00.8]}
33... Be4 {[%clk 0:00:18.5]} 34. Rxd6 {[%clk 0:00:00.6]} 34... Bxf3 {[%clk
0:00:12.5]} 35. Bxf3 {[%clk 0:00:00.4]} 35... e4 {[%clk 0:00:12.8]} 36. Rxe6
{[%clk 0:00:00.8]} 36... exf3 {[%clk 0:00:09.3]} 37. Qe5 {[%clk 0:00:01.5]}
37... Rhf8 {[%clk 0:00:03.4]} 38. Rxf6+ {[%clk 0:00:01.1]} 38... Kg8 {[%clk
0:00:03.7]} 39. Rxf8+ {[%clk 0:00:01.1]} 39... Bxf8 {[%clk 0:00:02.3]} 40. Qh8+
{[%clk 0:00:02]} 40... Kf7 {[%clk 0:00:02.7]} 41. Qh7+ {[%clk 0:00:02.9]} 41...
Ke6 {[%clk 0:00:02.6]} 42. Qxg6+ {[%clk 0:00:03.5]} 42... Kd7 {[%clk 0:00:02.7]}
43. Rd1+ {[%clk 0:00:04.1]} 43... Kc7 {[%clk 0:00:03.3]} 44. Be5+ {[%clk
0:00:04.4]} 44... Kb7 {[%clk 0:00:03.6]} 45. Rb1+ {[%clk 0:00:05]} 45... Ka7
{[%clk 0:00:03.4]} 46. Qb6# {[%clk 0:00:05.6]} 1-0

[Event "Late-Titled-Tuesday-Blitz-May-07-2024"]
[Site "Chess.com"]
[Date "2024.05.07"]
[Round "5"]
[White "TigrVShlyape"]
[Black "Firouzja2003"]
[Result "1/2-1/2"]
[WhiteElo "2967"]
[BlackElo "3189"]
[TimeControl "180+1"]
[EndTime "14:56:17 PDT"]
[Termination "Game drawn by repetition"]

1. d4 {[%clk 0:03:00.9]} 1... Nf6 {[%clk 0:02:58.3]} 2. Bf4 {[%clk 0:03:00.4]}
2... d6 {[%clk 0:02:58.1]} 3. e3 {[%clk 0:03:00.2]} 3... Nbd7 {[%clk 0:02:57.4]}
4. Nf3 {[%clk 0:02:59.8]} 4... Nh5 {[%clk 0:02:57.1]} 5. Bg3 {[%clk 0:02:59]}
5... e5 {[%clk 0:02:38.6]} 6. c3 {[%clk 0:02:44]} 6... e4 {[%clk 0:02:35.4]} 7.
Nfd2 {[%clk 0:02:42]} 7... Nxg3 {[%clk 0:02:35.1]} 8. hxg3 {[%clk 0:02:42.3]}
8... d5 {[%clk 0:02:33.4]} 9. c4 {[%clk 0:02:40.1]} 9... c6 {[%clk 0:02:33.1]}
10. Nc3 {[%clk 0:02:38.4]} 10... Nf6 {[%clk 0:02:32.3]} 11. cxd5 {[%clk
0:02:38.1]} 11... cxd5 {[%clk 0:02:33.2]} 12. Bb5+ {[%clk 0:02:38.2]} 12... Bd7
{[%clk 0:02:33.6]} 13. Qb3 {[%clk 0:02:38.5]} 13... a6 {[%clk 0:02:31.8]} 14.
Bxd7+ {[%clk 0:02:36.4]} 14... Qxd7 {[%clk 0:02:32.7]} 15. g4 {[%clk 0:02:29.7]}
15... Rd8 {[%clk 0:02:25.3]} 16. g5 {[%clk 0:02:29.1]} 16... Ng4 {[%clk
0:02:24.7]} 17. Ke2 {[%clk 0:01:59.8]} 17... Be7 {[%clk 0:01:46.8]} 18. f3
{[%clk 0:01:47.9]} 18... Bxg5 {[%clk 0:01:41.2]} 19. Qxd5 {[%clk 0:01:22.6]}
19... exf3+ {[%clk 0:01:10.1]} 20. gxf3 {[%clk 0:01:21.2]} 20... Qe7 {[%clk
0:01:10.4]} 21. Qe4 {[%clk 0:01:14.8]} 21... Nxe3 {[%clk 0:01:10.2]} 22. Rag1
{[%clk 0:01:09.1]} 22... Nf5 {[%clk 0:01:06.7]} 23. Rxg5 {[%clk 0:01:06.9]}
23... Nxd4+ {[%clk 0:01:05.2]} 24. Kf2 {[%clk 0:01:02.1]} 24... Ne6 {[%clk
0:00:53.7]} 25. Rd5 {[%clk 0:01:01.7]} 25... h6 {[%clk 0:00:54]} 26. Nc4 {[%clk
0:00:54.4]} 26... O-O {[%clk 0:00:53.2]} 27. Ne3 {[%clk 0:00:51.8]} 27... Qc7
{[%clk 0:00:42.4]} 28. Rxd8 {[%clk 0:00:44.5]} 28... Rxd8 {[%clk 0:00:42.3]} 29.
Ncd5 {[%clk 0:00:44.5]} 29... Qa5 {[%clk 0:00:35.4]} 30. Rd1 {[%clk 0:00:25.4]}
30... Re8 {[%clk 0:00:25.4]} 31. Qb4 {[%clk 0:00:23.3]} 31... Qd8 {[%clk
0:00:21.4]} 32. Qg4 {[%clk 0:00:19.9]} 32... Kf8 {[%clk 0:00:17.5]} 33. Nf5
{[%clk 0:00:19.3]} 33... Qa5 {[%clk 0:00:04]} 34. Qb4+ {[%clk 0:00:18.9]} 34...
Qxb4 {[%clk 0:00:04.2]} 35. Nxb4 {[%clk 0:00:19.5]} 35... Rc8 {[%clk 0:00:04.7]}
36. Rd2 {[%clk 0:00:18.4]} 36... h5 {[%clk 0:00:04.3]} 37. Rc2 {[%clk
0:00:18.2]} 37... Rd8 {[%clk 0:00:04.4]} 38. Re2 {[%clk 0:00:14.8]} 38... g6
{[%clk 0:00:04.6]} 39. Ne3 {[%clk 0:00:14.7]} 39... Nf4 {[%clk 0:00:04.7]} 40.
Re1 {[%clk 0:00:13.2]} 40... a5 {[%clk 0:00:04.8]} 41. Kg3 {[%clk 0:00:11.1]}
41... g5 {[%clk 0:00:04.1]} 42. Nbc2 {[%clk 0:00:10.7]} 42... Rd2 {[%clk
0:00:04.6]} 43. Rd1 {[%clk 0:00:10]} 43... Re2 {[%clk 0:00:05.2]} 44. Re1 {[%clk
0:00:09.8]} 44... Rd2 {[%clk 0:00:05.2]} 45. Rd1 {[%clk 0:00:10.2]} 45... Re2
{[%clk 0:00:04.8]} 46. Re1 {[%clk 0:00:10.7]} 46... Rd2 {[%clk 0:00:04.7]}
1/2-1/2